bitfinex/quotes_BTCUSD_20251230
["timestamp","ask_amount","ask_price","bid_price","bid_amount"]
[1767078700049,0.01143405,87458.0,87449.0,0.01139723]
[1767078700872,0.01143392,87459.0,87449.0,0.01139723]
[1767078702065,0.01143405,87458.0,87449.0,0.52964713]
[1767078702364,0.01143392,87459.0,87449.0,0.52964713]
[1767078706485,0.01143379,87460.0,87449.0,0.52964713]
[1767078706688,0.01143392,87459.0,87449.0,0.52964713]
[1767078707295,0.01143392,87459.0,87449.0,0.01139723]
[1767078707498,0.01143392,87459.0,87449.0,0.52964713]
[1767078707732,0.01143405,87458.0,87449.0,0.52964713]
[1767078710538,0.01143432,87456.0,87449.0,0.01139723]
[1767078710944,0.01143432,87456.0,87446.0,0.5182499]
[1767078711224,0.01143419,87457.0,87447.0,0.01144]
[1767078711735,0.01143405,87458.0,87446.0,0.52968552]
[1767078711960,0.01143419,87457.0,87448.0,0.5296899]
[1767078713634,0.01143432,87456.0,87449.0,0.01144]
[1767078713943,0.01143419,87457.0,87449.0,0.01144]
[1767078720105,0.01143432,87456.0,87449.0,0.01144]
[1767078720796,0.01143445,87455.0,87449.0,0.01144]
[1767078721017,0.01143458,87454.0,87449.0,0.01144]
[1767078721770,0.01143484,87452.0,87449.0,0.01144]
[1767078721975,0.01143458,87454.0,87449.0,0.01144]
[1767078722784,0.01143445,87455.0,87449.0,0.01144]
[1767078723489,0.01143392,87459.0,87455.0,0.000549]
[1767078723835,0.01143366,87461.0,87449.0,0.5296899]
[1767078724476,0.01143366,87461.0,87449.0,0.54112513]
[1767078725368,0.06859896,87465.0,87450.0,0.0114351]
[1767078725580,0.01143327,87464.0,87461.0,0.000549]
[1767078725734,0.01143327,87464.0,87450.0,0.0114351]
[1767078725953,0.01143353,87462.0,87450.0,0.0114351]
[1767078726159,0.0114334,87463.0,87451.0,0.01143497]
[1767078726554,0.01143353,87462.0,87451.0,0.01143497]
[1767078727196,0.01143353,87462.0,87449.0,0.5296899]
[1767078727416,0.01143353,87462.0,87450.0,0.0114351]
[1767078727662,0.0114334,87463.0,87451.0,0.01143497]
[1767078728036,0.01143366,87461.0,87449.0,0.02287523]
[1767078728243,0.01143353,87462.0,87450.0,0.529685]
[1767078729779,0.01143366,87461.0,87450.0,0.5182499]
[1767078730268,0.01143353,87462.0,87450.0,0.529685]
[1767078730444,0.0114334,87463.0,87451.0,0.01143497]
[1767078731279,0.01143327,87464.0,87451.0,0.01143497]
[1767078731859,0.01143327,87464.0,87453.0,0.01143471]
[1767078732322,0.01143314,87465.0,87453.0,0.01143471]
[1767078732865,0.01143327,87464.0,87453.0,0.01143471]
[1767078733287,0.01143314,87465.0,87453.0,0.01143471]
[1767078733826,0.01143301,87466.0,87454.0,0.01143458]
[1767078734025,0.01143314,87465.0,87454.0,0.01143458]
[1767078734244,0.01151904,87466.0,87455.0,0.01143445]
[1767078734442,8.603e-05,87466.0,87456.0,0.5182499]
[1767078735010,0.0001465,87545.0,87454.0,0.00054007]
[1767078735011,0.01143079,87483.0,87469.0,0.01143262]
[1767078735219,0.01143092,87482.0,87470.0,0.01144]
[1767078735419,0.01143092,87482.0,87470.0,0.5296899]
[1767078735420,0.02215115,87481.0,87470.0,0.5296899]
[1767078735633,0.01143131,87479.0,87470.0,0.4719099]
[1767078736098,0.01143144,87478.0,87470.0,0.4719099]
[1767078736300,0.01143131,87479.0,87470.0,0.01144]
[1767078736604,0.01143144,87478.0,87470.0,0.01144]
[1767078736845,0.01143131,87479.0,87470.0,0.01144]
[1767078737626,1.09485744,87500.0,87470.0,0.01144]
[1767078737627,0.59852925,87500.0,87499.0,0.05714351]
[1767078737859,0.02808375,87520.0,87499.0,0.05714351]
[1767078737860,0.11977427,87535.0,87506.0,0.01142778]
[1767078738078,0.11977427,87535.0,87510.0,0.52967716]
[1767078738079,0.11977427,87521.0,87510.0,0.52967716]
[1767078738230,0.11977427,87521.0,87514.0,0.01142674]
[1767078738464,0.11977427,87521.0,87507.0,0.01148]
[1767078738465,0.11977427,87521.0,87513.0,0.01142687]
[1767078738662,0.11977427,87521.0,87510.0,0.01142726]
[1767078738926,0.11977427,87521.0,87511.0,0.01142713]
[1767078739116,0.11977427,87521.0,87510.0,0.52967716]
[1767078739338,0.11977427,87521.0,87510.0,0.01142726]
[1767078739494,0.11977427,87521.0,87510.0,0.52967716]
[1767078739697,0.11977427,87521.0,87509.0,0.01142739]
[1767078739961,0.11977427,87521.0,87510.0,0.52967716]
[1767078740448,0.11977427,87521.0,87511.0,0.01142713]
[1767078740879,0.11977427,87521.0,87505.0,0.01193897]
[1767078741082,0.11977427,87521.0,87492.0,0.22859209]
[1767078741083,0.01142648,87516.0,87500.0,0.05729197]
[1767078741284,0.01142674,87514.0,87497.0,0.01162896]
[1767078741488,0.01142752,87508.0,87497.0,0.0002]
[1767078741691,0.14268192,87507.0,87497.0,0.0002]
[1767078741894,0.01142791,87505.0,87492.0,0.01142961]
[1767078742045,0.0002,87503.0,87492.0,0.01142961]
[1767078742449,0.0002,87503.0,87489.0,0.01143]
[1767078742638,0.0002,87503.0,87491.0,0.01142974]
[1767078742840,0.01142857,87500.0,87487.0,0.01143026]
[1767078743078,0.01148,87499.0,87487.0,0.01153681]
[1767078743483,0.0229087,87499.0,87487.0,0.00010655]
[1767078743874,0.01148,87499.0,87489.0,0.01143]
[1767078744366,0.01148,87499.0,87488.0,0.01143013]
[1767078744577,0.01148,87499.0,87490.0,0.01142987]
[1767078744999,0.01148,87499.0,87491.0,0.01142974]
[1767078745152,0.01148,87499.0,87490.0,0.01142987]
[1767078745528,0.01148,87499.0,87488.0,0.01143013]
[1767078746172,0.01148,87499.0,87489.0,0.01143]
[1767078747989,0.0229087,87499.0,87487.0,0.00010655]
[1767078748187,0.01142935,87494.0,87483.0,0.0002]
[1767078748368,0.01142987,87490.0,87483.0,0.0002]
[1767078748571,0.01148,87489.0,87483.0,0.0002]
[1767078749281,0.010931,87489.0,87483.0,0.0002]
[1767078754359,0.010931,87489.0,87481.0,0.01143105]
[1767078754558,0.010931,87489.0,87482.0,0.01143092]
[1767078754765,0.010931,87489.0,87481.0,0.01143105]
[1767078755224,0.010931,87489.0,87482.0,0.01143092]
[1767078755820,0.010931,87489.0,87484.0,0.01143066]
[1767078756017,0.010931,87489.0,87483.0,0.01143079]
[1767078756586,0.010931,87489.0,87482.0,0.01143092]
[1767078756787,0.010931,87489.0,87483.0,0.01143079]
[1767078757313,0.010931,87489.0,87482.0,0.01143092]
[1767078757704,0.010931,87489.0,87483.0,0.01143079]
[1767078758068,0.010931,87489.0,87482.0,0.01143092]
[1767078758266,0.010931,87489.0,87483.0,0.01143079]
[1767078758384,0.010931,87489.0,87484.0,0.01143066]
[1767078758588,0.010931,87489.0,87485.0,0.01143053]
[1767078759010,0.010931,87489.0,87484.0,0.01143066]
[1767078759549,0.010931,87489.0,87485.0,0.01143053]
[1767078759898,0.010931,87489.0,87484.0,0.01143066]
[1767078760111,0.010931,87489.0,87485.0,0.01143053]
[1767078760807,0.010931,87489.0,87484.0,0.01143066]
[1767078761268,0.01148,87489.0,87484.0,0.06858387]
[1767078761470,0.01148,87490.0,87487.0,0.01143026]
[1767078761678,0.01142831,87502.0,87490.0,0.00055]
[1767078761679,0.01144,87493.0,87490.0,0.00055]
[1767078761874,0.01144,87494.0,87487.0,0.01143026]
[1767078762612,0.01144,87494.0,87488.0,0.01143013]
[1767078763241,0.01144,87494.0,87489.0,0.01143]
[1767078763376,0.01144,87494.0,87488.0,0.01143013]
[1767078764028,0.01144,87494.0,87489.0,0.01143]
[1767078764353,0.01144,87494.0,87487.0,0.01143026]
[1767078764776,0.01144,87494.0,87488.0,0.01143013]
[1767078765702,0.01144,87494.0,87486.0,0.0114304]
[1767078766115,0.01142844,87501.0,87488.0,0.01143013]
[1767078766339,0.01144,87500.0,87490.0,0.01142987]
[1767078766755,0.01144,87500.0,87489.0,0.01143]
[1767078766972,0.01144,87500.0,87490.0,0.01142987]
[1767078768555,0.01144,87500.0,87491.0,0.01142974]
[1767078769176,0.01144,87500.0,87493.0,0.01142948]
[1767078769307,0.01144,87500.0,87490.0,0.01142987]
[1767078770319,0.01144,87500.0,87491.0,0.01142974]
[1767078770948,0.01144,87500.0,87489.0,0.06857987]
[1767078771175,0.01144,87500.0,87490.0,0.01142987]
[1767078771383,0.01071468,87499.0,87490.0,0.01142987]
[1767078771579,0.01071468,87498.0,87490.0,0.01142987]
[1767078771900,0.01144,87500.0,87490.0,0.01142987]
[1767078772047,0.01071468,87499.0,87490.0,0.01142987]
[1767078772456,0.01071468,87498.0,87491.0,0.01142974]
[1767078772677,0.01144,87500.0,87491.0,0.01142974]
[1767078772896,0.0107157,87499.0,87490.0,0.01142987]
[1767078773121,0.0107157,87498.0,87491.0,0.01142974]
[1767078773323,0.01144,87500.0,87491.0,0.01142974]
[1767078773492,0.0107163,87499.0,87491.0,0.01142974]
[1767078773730,0.01144,87500.0,87490.0,0.01142987]
[1767078773904,0.0107163,87499.0,87490.0,0.01142987]
[1767078774136,0.01144,87500.0,87490.0,0.01142987]
[1767078774336,0.0107163,87499.0,87490.0,0.01142987]
[1767078774471,0.01144,87500.0,87490.0,0.01142987]
[1767078774675,0.01071696,87499.0,87491.0,0.01142974]
[1767078774877,0.01144,87500.0,87491.0,0.01142974]
[1767078775073,0.01071696,87499.0,87491.0,0.01142974]
[1767078775275,0.01144,87500.0,87491.0,0.01142974]
[1767078775506,0.01071772,87499.0,87491.0,0.01142974]
[1767078775681,0.01144,87500.0,87491.0,0.01142974]
[1767078775882,0.01071772,87499.0,87491.0,0.01142974]
[1767078776083,0.01144,87500.0,87490.0,0.01142987]
[1767078776318,0.01071772,87499.0,87490.0,0.01142987]
[1767078776524,0.01144,87500.0,87491.0,0.01142974]
[1767078776720,0.01071867,87499.0,87491.0,0.01142974]
[1767078776950,0.01144,87500.0,87491.0,0.01142974]
[1767078777155,0.01071866,87499.0,87491.0,0.01142974]
[1767078777355,0.01144,87500.0,87490.0,0.01142987]
[1767078777531,0.01071969,87499.0,87491.0,0.01142974]
[1767078777748,0.01144,87500.0,87490.0,0.01142987]
[1767078778150,0.01071969,87499.0,87490.0,0.01142987]
[1767078778417,0.01144,87500.0,87490.0,0.01142987]
[1767078779816,0.01144,87500.0,87491.0,0.01142974]
[1767078780686,0.01144,87500.0,87490.0,0.01142987]
[1767078780888,0.01144,87500.0,87491.0,0.01142974]
[1767078781287,0.01144,87500.0,87490.0,0.01142987]
[1767078781485,0.01144,87500.0,87489.0,0.01143]
[1767078781706,0.01144,87500.0,87491.0,0.01142974]
[1767078782042,0.0002,87503.0,87500.0,0.00055]
[1767078782301,0.01144,87502.0,87500.0,0.00055]
[1767078782444,0.01144,87502.0,87495.0,0.01142922]
[1767078782658,0.0002,87503.0,87493.0,0.01142948]
[1767078782880,0.01144,87502.0,87493.0,0.01142948]
[1767078783121,0.01144,87501.0,87494.0,0.01142935]
[1767078784406,0.01144,87500.0,87493.0,0.01142948]
[1767078784609,0.0002,87503.0,87493.0,0.01142948]
[1767078784815,0.01144,87499.0,87493.0,0.01142948]
[1767078785015,0.01144,87499.0,87485.0,0.05715246]
[1767078785264,0.01144,87499.0,87491.0,0.01142974]
[1767078785797,0.01144,87499.0,87490.0,0.01142987]
[1767078786988,0.01144,87499.0,87492.0,0.01142961]
[1767078787394,0.01144,87499.0,87493.0,0.01142948]
[1767078787643,0.01144,87499.0,87490.0,0.01142987]
[1767078787934,0.01142883,87498.0,87484.0,0.01143066]
[1767078788073,0.01144,87499.0,87487.0,0.01143026]
[1767078788478,0.01144,87499.0,87490.0,0.01142987]
[1767078788716,0.01144,87499.0,87491.0,0.01142974]
[1767078788951,0.01144,87499.0,87490.0,0.01142987]
[1767078789342,0.01144,87499.0,87489.0,0.01143]
[1767078790115,0.01144,87499.0,87488.0,0.01143013]
[1767078790349,0.01144,87499.0,87489.0,0.01143]
[1767078790993,0.01144,87499.0,87488.0,0.01143013]
[1767078791198,0.0228687,87499.0,87487.0,0.01143026]
[1767078791415,0.0228687,87499.0,87488.0,0.01143013]
[1767078791637,0.01144,87499.0,87489.0,0.01143]
[1767078791836,0.01144,87499.0,87491.0,0.01142974]
[1767078792050,0.01144,87499.0,87494.0,0.01142935]
[1767078792177,0.01144,87499.0,87495.0,0.01142922]
[1767078792380,0.01144,87499.0,87496.0,0.01142909]
[1767078793052,0.01089,87499.0,87496.0,0.01142909]
[1767078795825,0.01089,87499.0,87495.0,0.01142922]
[1767078796094,0.01089,87499.0,87494.0,0.06857577]
[1767078796440,0.01089,87499.0,87492.0,0.02285923]
[1767078796846,0.01089,87499.0,87495.0,0.05714552]
[1767078797185,0.01089,87499.0,87496.0,0.01142909]
[1767078798246,0.0002,87503.0,87500.0,0.01142857]
[1767078798452,0.0002,87503.0,87499.0,0.0114287]
[1767078798453,0.01144,87502.0,87499.0,0.0114287]
[1767078798653,0.0002,87517.0,87494.0,0.02285871]
[1767078798882,0.02216166,87516.0,87506.0,0.01142778]
[1767078799080,0.01072166,87515.0,87501.0,0.01142844]
[1767078799242,0.000549,87506.0,87502.0,0.01142831]
[1767078799444,0.000549,87506.0,87501.0,0.01142844]
[1767078799773,0.01142687,87513.0,87500.0,0.01142857]
[1767078799774,0.01142713,87511.0,87500.0,0.01142857]
[1767078799958,0.011427,87512.0,87500.0,0.01142857]
[1767078800295,0.011427,87512.0,87501.0,0.01142844]
[1767078800296,0.0116958,87512.0,87501.0,0.01142844]
[1767078801035,0.0002688,87512.0,87502.0,0.01142831]
[1767078801768,0.0002688,87512.0,87503.0,0.01142817]
[1767078802402,0.0002688,87512.0,87502.0,0.01142831]
[1767078802811,0.0002688,87512.0,87501.0,0.01142844]
[1767078803208,0.0116958,87512.0,87501.0,0.01142844]
[1767078803569,0.0002688,87512.0,87503.0,0.01142817]
[1767078803817,0.0002688,87512.0,87502.0,0.01142831]
[1767078804151,0.0116958,87512.0,87501.0,0.01142844]
[1767078805371,0.0002688,87512.0,87502.0,0.01142831]
[1767078805727,0.0002688,87512.0,87501.0,0.01142844]
[1767078806073,0.0116958,87512.0,87501.0,0.01142844]
[1767078806273,0.0116958,87512.0,87500.0,0.52930106]
[1767078806483,0.0116958,87512.0,87501.0,0.01142844]
[1767078806679,0.0116958,87512.0,87500.0,0.52930106]
[1767078806883,0.0116958,87512.0,87501.0,0.01142844]
[1767078807468,0.0002688,87512.0,87501.0,0.01142844]
[1767078807677,0.0116958,87512.0,87501.0,0.01142844]
[1767078807857,0.0002688,87512.0,87502.0,0.01142831]
[1767078808950,0.0002688,87512.0,87503.0,0.01142817]
[1767078809149,0.0002688,87512.0,87499.0,0.05714351]
[1767078809355,0.0002688,87512.0,87502.0,0.01142831]
[1767078809524,0.0117088,87512.0,87502.0,0.01142831]
[1767078809924,0.0117088,87512.0,87503.0,0.01142817]
[1767078810144,0.0117088,87512.0,87502.0,0.01142831]
[1767078810735,0.0231358,87512.0,87500.0,0.51787249]
[1767078810936,0.0231358,87512.0,87501.0,0.01142844]
[1767078811337,0.01142713,87511.0,87499.0,0.0114287]
[1767078811575,0.0231358,87512.0,87487.0,0.06374752]
[1767078811576,0.000549,87501.0,87487.0,0.06374752]
[1767078811790,0.00055,87499.0,87494.0,0.01142935]
[1767078811992,0.01142804,87504.0,87491.0,0.01142974]
[1767078812192,0.01142804,87504.0,87492.0,0.01142961]
[1767078812310,0.01142817,87503.0,87491.0,0.01142974]
[1767078812664,0.01142804,87504.0,87492.0,0.01142961]
[1767078813272,0.01142817,87503.0,87491.0,0.01142974]
[1767078813470,0.01142817,87503.0,87492.0,0.01142961]
[1767078813674,0.01142831,87502.0,87491.0,0.01142974]
[1767078813879,0.01142817,87503.0,87491.0,0.01142974]
[1767078814504,0.06856965,87503.0,87489.0,0.01144]
[1767078814704,0.01142844,87501.0,87490.0,0.01142987]
[1767078814906,0.01142857,87500.0,87489.0,0.02287]
[1767078815104,0.01142844,87501.0,87490.0,0.01142987]
[1767078816155,0.01142804,87504.0,87492.0,0.01142961]
[1767078816502,0.01142804,87504.0,87493.0,0.01142948]
[1767078816729,0.01142804,87504.0,87500.0,0.000881]
[1767078816948,0.01142804,87504.0,87500.0,0.000332]
[1767078817141,0.02286791,87505.0,87500.0,0.000332]
[1767078817349,0.01144,87505.0,87500.0,0.000332]
[1767078817957,0.01142817,87503.0,87500.0,0.000332]
[1767078819522,0.05714155,87502.0,87500.0,0.000332]
[1767078819720,0.01142817,87503.0,87500.0,0.000332]
[1767078819926,0.06856969,87503.0,87500.0,0.000332]
[1767078820148,0.01142883,87498.0,87486.0,0.0002]
[1767078820307,0.51781876,87496.0,87486.0,0.0002]
[1767078820527,0.01142857,87500.0,87489.0,0.01143]
[1767078820735,0.0114287,87499.0,87488.0,0.01143013]
[1767078820977,0.51781876,87500.0,87489.0,0.01143]
[1767078821179,0.51781876,87500.0,87490.0,0.01142987]
[1767078821687,0.01142804,87504.0,87493.0,0.01142948]
[1767078821846,0.02286791,87505.0,87493.0,0.01142948]
[1767078822761,0.51781876,87503.0,87493.0,0.01142948]
[1767078823404,0.51781876,87503.0,87494.0,0.01142935]
[1767078823614,0.01144,87505.0,87493.0,0.01142948]
[1767078823931,0.02286791,87505.0,87493.0,0.01142948]
[1767078824289,0.01142804,87504.0,87492.0,0.01142961]
[1767078824452,0.01142817,87503.0,87492.0,0.01142961]
[1767078824657,0.01142817,87503.0,87491.0,0.01142974]
[1767078825523,0.01142804,87504.0,87491.0,0.06857826]
[1767078825728,0.01142804,87504.0,87492.0,0.01142961]
[1767078825935,0.02286791,87505.0,87494.0,0.01142935]
[1767078826235,0.02286791,87505.0,87493.0,0.01142948]
[1767078826593,0.01142804,87504.0,87493.0,0.01142948]
[1767078826816,0.0002,87506.0,87504.0,0.000549]
[1767078827024,0.0002,87506.0,87501.0,0.01142844]
[1767078827225,0.0002,87506.0,87503.0,0.01142817]
[1767078827813,0.01144,87507.0,87503.0,0.01142817]
[1767078828014,0.01144,87507.0,87502.0,0.01142831]
[1767078828223,0.011091,87507.0,87502.0,0.01142831]
[1767078828422,0.011091,87507.0,87503.0,0.01142817]
[1767078828697,0.011091,87507.0,87502.0,0.01142831]
[1767078829465,0.011091,87507.0,87504.0,0.01142804]
[1767078830014,0.011091,87507.0,87503.0,0.01142817]
[1767078830553,0.011091,87507.0,87502.0,0.01142831]
[1767078830774,0.011091,87507.0,87503.0,0.01142817]
[1767078831226,0.011091,87507.0,87504.0,0.01142804]
[1767078831898,0.011091,87507.0,87503.0,0.01142817]
[1767078832102,0.01144,87509.0,87504.0,0.01142804]
[1767078832401,0.01144,87509.0,87505.0,0.01142791]
[1767078832564,0.01144,87509.0,87504.0,0.01142804]
[1767078832908,0.01144,87509.0,87503.0,0.01142817]
[1767078834658,0.01144,87509.0,87504.0,0.01142804]
[1767078835412,0.01144,87509.0,87502.0,0.01142831]
[1767078835593,0.01144,87509.0,87503.0,0.01142817]
[1767078836768,0.01144,87509.0,87504.0,0.01142804]
[1767078836937,0.01144,87509.0,87503.0,0.01142817]
[1767078837380,0.01144,87509.0,87504.0,0.01142804]
[1767078837586,0.01144,87509.0,87503.0,0.01142817]
[1767078838750,0.01144,87509.0,87502.0,0.01142831]
[1767078839717,0.01144,87509.0,87503.0,0.01142817]
[1767078840284,0.01144,87509.0,87504.0,0.01142804]
[1767078840514,0.01144,87509.0,87505.0,0.01142791]
[1767078840707,0.01144,87509.0,87503.0,0.01142817]
[1767078841266,0.01144,87509.0,87504.0,0.01142804]
[1767078842038,0.01144,87509.0,87505.0,0.01142791]
[1767078842446,0.01144,87509.0,87506.0,0.01142778]
[1767078842944,0.01144,87509.0,87504.0,0.01142804]
[1767078843286,0.01144,87509.0,87499.0,0.0571433]
[1767078843431,0.000549,87504.0,87501.0,0.01142844]
[1767078843787,0.01144,87509.0,87501.0,0.01142844]
[1767078844077,0.01144,87509.0,87502.0,0.01142831]
[1767078844341,0.01144,87509.0,87503.0,0.01142817]
[1767078844917,0.01144,87509.0,87504.0,0.01142804]
[1767078845272,0.01144,87509.0,87505.0,0.01142791]
[1767078845695,0.01144,87509.0,87504.0,0.01142804]
[1767078845896,0.01144,87510.0,87503.0,0.01142817]
[1767078846091,0.01144,87510.0,87504.0,0.01142804]
[1767078846707,0.01144,87510.0,87503.0,0.01142817]
[1767078846932,0.01144,87510.0,87505.0,0.01142791]
[1767078847392,0.01144,87510.0,87503.0,0.01142817]
[1767078847592,0.01144,87510.0,87505.0,0.01142791]
[1767078847992,0.01144,87510.0,87504.0,0.01142804]
[1767078849536,0.01144,87510.0,87503.0,0.06856896]
[1767078849743,0.001099,87504.0,87502.0,0.01142831]
[1767078849943,0.01144,87510.0,87503.0,0.01142817]
[1767078850348,0.01144,87510.0,87502.0,0.01142831]
[1767078851787,0.01144,87510.0,87501.0,0.01142844]
[1767078852068,0.01144,87510.0,87502.0,0.01142831]
[1767078852270,0.01144,87510.0,87501.0,0.01142844]
[1767078852416,0.01144,87510.0,87361.0,0.57846943]
[1767078852417,0.01142752,87508.0,87494.0,0.01142935]
[1767078852625,0.000549,87494.0,87491.0,0.02286974]
[1767078852824,0.000549,87494.0,87491.0,0.01144]
[1767078853053,0.51781876,87500.0,87491.0,0.01144]
[1767078853244,0.51781876,87500.0,87491.0,0.02286974]
[1767078853689,0.51781876,87500.0,87492.0,0.01142961]
[1767078853826,0.51781876,87502.0,87492.0,0.01142961]
[1767078854027,0.01142817,87503.0,87492.0,0.01142961]
[1767078854230,0.52925876,87502.0,87492.0,0.01142961]
[1767078854631,0.52925876,87502.0,87493.0,0.01142948]
[1767078854831,0.52925876,87502.0,87492.0,0.01142961]
[1767078855800,0.52925876,87502.0,87493.0,0.01142948]
[1767078856004,0.52925876,87502.0,87495.0,0.01142922]
[1767078856153,0.01144,87502.0,87495.0,0.01142922]
[1767078856743,0.01144,87502.0,87496.0,0.01142909]
[1767078857182,0.01144,87502.0,87491.0,0.01142974]
[1767078857381,0.01144,87502.0,87493.0,0.01142948]
[1767078857808,0.01144,87502.0,87494.0,0.01142935]
[1767078858202,0.01144,87502.0,87493.0,0.01142948]
[1767078858425,0.01144,87502.0,87492.0,0.01142961]
[1767078858847,0.01144,87502.0,87494.0,0.01142935]
[1767078859191,0.01144,87502.0,87493.0,0.01142948]
[1767078859473,0.01144,87502.0,87494.0,0.01142935]
[1767078859769,0.01144,87502.0,87495.0,0.01142922]
[1767078860909,0.0116678,87502.0,87495.0,0.01142922]
[1767078861069,0.0116678,87502.0,87494.0,0.01142935]
[1767078861286,0.0116678,87502.0,87495.0,0.01142922]
[1767078861806,0.0116678,87502.0,87496.0,0.01142909]
[1767078862259,0.0116678,87502.0,87495.0,0.01142922]
[1767078862432,0.0116678,87502.0,87496.0,0.01142909]
[1767078862794,0.0116678,87502.0,87495.0,0.01142922]
[1767078863035,0.0116678,87502.0,87496.0,0.06857391]
[1767078863368,0.0116678,87502.0,87495.0,0.01142922]
[1767078863369,0.0001454,87508.0,87501.0,0.01142844]
[1767078863946,0.0001454,87508.0,87502.0,0.01142831]
[1767078864502,0.01142674,87514.0,87500.0,0.06857135]
[1767078864503,0.01142543,87524.0,87506.0,0.01142778]
[1767078864714,0.01142543,87524.0,87511.0,0.01142713]
[1767078864715,0.01144,87521.0,87511.0,0.01142713]
[1767078865115,0.52925876,87521.0,87509.0,0.01142739]
[1767078865329,0.52925876,87521.0,87510.0,0.01142726]
[1767078865862,0.00070372,87517.0,87510.0,0.01142726]
[1767078866364,0.00070372,87517.0,87511.0,0.01142713]
[1767078866595,0.00070372,87517.0,87514.0,0.01142674]
[1767078867056,0.01144,87516.0,87513.0,0.01142687]
[1767078867439,0.01144,87516.0,87512.0,0.011427]
[1767078868405,0.01144,87516.0,87510.0,0.01142726]
[1767078868864,0.01144,87516.0,87511.0,0.01142713]
[1767078869072,0.01144,87516.0,87512.0,0.011427]
[1767078869223,0.01144,87516.0,87511.0,0.01142713]
[1767078869428,0.01144,87516.0,87512.0,0.011427]
[1767078869626,0.01144,87516.0,87511.0,0.01142713]
[1767078869847,0.01144,87516.0,87510.0,0.01142726]
[1767078870472,0.01144,87516.0,87510.0,0.06856313]
[1767078870647,0.01144,87516.0,87510.0,0.01142726]
[1767078871053,0.01144,87516.0,87511.0,0.01142713]
[1767078871673,0.01144,87516.0,87510.0,0.01142726]
[1767078871869,0.01144,87516.0,87509.0,0.01142739]
[1767078872088,0.01144,87516.0,87510.0,0.01142726]
[1767078873631,0.01144,87516.0,87509.0,0.01142739]
[1767078873788,0.01144,87516.0,87510.0,0.01142726]
[1767078874384,0.01144,87516.0,87511.0,0.01142713]
[1767078874513,0.01144,87516.0,87508.0,0.01142752]
[1767078874736,0.000549,87511.0,87509.0,0.01142739]
[1767078875115,0.01144,87516.0,87510.0,0.01142726]
[1767078876115,0.01144,87516.0,87509.0,0.01142739]
[1767078877953,0.01144,87516.0,87505.0,0.06856742]
[1767078878159,0.01144,87516.0,87507.0,0.06856588]
[1767078878160,0.000549,87509.0,87507.0,0.06856588]
[1767078878359,0.01144,87516.0,87510.0,0.01142726]
[1767078878644,0.01144,87516.0,87509.0,0.01142739]
[1767078879860,0.01144,87516.0,87510.0,0.01142726]
[1767078880163,0.01144,87516.0,87511.0,0.01142713]
[1767078880387,0.01144,87516.0,87510.0,0.01142726]
[1767078881034,0.01144,87516.0,87511.0,0.01142713]
[1767078881692,0.01144,87516.0,87510.0,0.01142726]
[1767078882044,0.01144,87516.0,87511.0,0.01142713]
[1767078882250,0.01144,87516.0,87510.0,0.01142726]
[1767078883491,0.01144,87516.0,87511.0,0.01142713]
[1767078884469,0.000549,87511.0,87507.0,0.06856588]
[1767078884617,0.000549,87511.0,87508.0,0.01142752]
[1767078884943,0.01144,87516.0,87510.0,0.01142726]
[1767078885283,0.01144,87516.0,87508.0,0.01142752]
[1767078885682,0.01144,87516.0,87510.0,0.01142726]
[1767078886067,0.01144,87516.0,87509.0,0.01142739]
[1767078886425,0.01144,87516.0,87510.0,0.01142726]
[1767078888349,0.01144,87516.0,87511.0,0.01142713]
[1767078888873,0.01144,87516.0,87510.0,0.01142726]
[1767078890085,0.01144,87516.0,87509.0,0.01142739]
[1767078890202,0.01144,87516.0,87510.0,0.01142726]
[1767078890624,0.01144,87516.0,87509.0,0.01142739]
[1767078890837,0.01144,87516.0,87510.0,0.01142726]
[1767078891077,0.01144,87516.0,87509.0,0.01142739]
[1767078891493,0.01144,87516.0,87510.0,0.01142726]
[1767078891716,0.01144,87516.0,87509.0,0.01142739]
[1767078891850,0.01144,87516.0,87510.0,0.01142726]
[1767078892472,0.01144,87516.0,87509.0,0.01142739]
[1767078892693,0.01144,87516.0,87510.0,0.01142726]
[1767078893357,0.01144,87516.0,87509.0,0.01142739]
[1767078893571,0.01144,87516.0,87510.0,0.01142726]
[1767078895282,0.01144,87516.0,87511.0,0.01142713]
[1767078895579,0.01144,87516.0,87512.0,0.011427]
[1767078896463,0.01144,87516.0,87513.0,0.01142687]
[1767078896664,0.01144,87516.0,87512.0,0.011427]
[1767078897345,0.01144,87516.0,87513.0,0.01142687]
[1767078897542,0.01144,87516.0,87512.0,0.011427]
[1767078897754,0.01144,87516.0,87511.0,0.01142713]
[1767078897960,0.01144,87516.0,87496.0,0.29243253]
[1767078897961,0.01142726,87510.0,87498.0,0.01142883]
[1767078898167,0.01142726,87510.0,87496.0,0.02286909]
[1767078898168,0.01144,87509.0,87496.0,0.01142909]
[1767078898372,0.01144,87509.0,87497.0,0.01142896]
[1767078898582,0.02286739,87509.0,87496.0,0.01142909]
[1767078898940,0.01144,87509.0,87496.0,0.01142909]
[1767078899146,0.01142765,87507.0,87495.0,0.01142922]
[1767078899504,0.01142778,87506.0,87495.0,0.01142922]
[1767078899688,0.01142791,87505.0,87494.0,0.01142935]
[1767078900044,0.01142804,87504.0,87492.0,0.02286961]
[1767078900245,0.01142817,87503.0,87493.0,0.01142948]
[1767078900659,0.01142817,87503.0,87492.0,0.01144]
[1767078900956,0.01142857,87500.0,87487.0,0.01144]
[1767078901154,0.01142896,87497.0,87487.0,0.02287026]
[1767078901357,0.01142896,87497.0,87487.0,0.01144]
[1767078901622,0.01142883,87498.0,87487.0,0.01144]
[1767078901770,0.01142896,87497.0,87486.0,0.0003454]
[1767078901973,0.01142896,87497.0,87486.0,0.0117758]
[1767078902179,0.01142922,87495.0,87486.0,0.0003454]
[1767078902498,0.01142909,87496.0,87486.0,0.0003454]
[1767078902827,0.01142922,87495.0,87486.0,0.0003454]
[1767078903243,0.01142948,87493.0,87486.0,0.0003454]
[1767078903445,0.02286935,87494.0,87486.0,0.0003454]
[1767078904296,0.01144,87494.0,87486.0,0.0003454]
[1767078904969,0.02286935,87494.0,87486.0,0.0003454]
[1767078905149,0.01144,87494.0,87486.0,0.0003454]
[1767078905867,0.02286935,87494.0,87486.0,0.0003454]
[1767078906086,0.01142961,87492.0,87486.0,0.0003454]
[1767078906236,0.01142974,87491.0,87486.0,0.0003454]
[1767078906439,0.01142961,87492.0,87486.0,0.0003454]
[1767078906714,0.02286935,87494.0,87486.0,0.0003454]
[1767078906869,0.01142948,87493.0,87486.0,0.0003454]
[1767078907176,0.02286935,87494.0,87486.0,0.0003454]